fUST/lending_fUST_20240508
["ID","MTS","AMOUNT","RATE_DAILY","PERIOD"]
[326547658,1715101835590,-501.20714374,0.00016438,2]
[326547660,1715101835615,-3002.35,0.00016438,2]
[326547662,1715101835628,-500.0,0.00016438,2]
[326547664,1715101835643,-500.0,0.00016438,2]
[326547666,1715101835657,-500.0,0.00016438,2]
[326547668,1715101835668,-1416.87,0.00016438,2]
[326547670,1715101835682,-500.0,0.00016438,2]
[326547672,1715101835700,-500.75364719,0.00016438,2]
[326547674,1715101835712,-500.0,0.00016438,2]
[326547676,1715101835723,-500.0,0.00016438,2]
[326547678,1715101835734,-500.0,0.00016438,2]
[326547680,1715101835744,-500.0,0.00016438,2]
[326547683,1715101835760,-500.0,0.00016438,2]
[326547685,1715101835778,-500.0,0.00016438,2]
[326547687,1715101835789,-500.0,0.00016438,2]
[326547689,1715101835799,-500.0,0.00016438,2]
[326547691,1715101835808,-500.0,0.00016438,2]
[326547693,1715101835820,-500.0,0.00016438,2]
[326547695,1715101835837,-500.0,0.00016438,2]
[326547697,1715101835848,-500.0,0.00016438,2]
[326547699,1715101835862,-500.0,0.00016438,2]
[326547701,1715101835873,-500.0,0.00016438,2]
[326547703,1715101835883,-502.54179232,0.00016438,2]
[326547704,1715101835895,-537.01,0.00016438,2]
[326547706,1715101835909,-500.0,0.00016438,2]
[326547708,1715101835920,-500.0,0.00016438,2]
[326547711,1715101835940,-500.0,0.00016438,2]
[326547713,1715101835950,-504.99523026,0.00016438,2]
[326547714,1715101835964,-500.0,0.00016438,2]
[326547716,1715101835975,-500.0,0.00016438,2]
[326547718,1715101835986,-503.16986816,0.00016438,2]
[326547720,1715101835996,-505.79487612,0.00016438,2]
[326547722,1715101836006,-500.0,0.00016438,2]
[326547724,1715101836030,-500.0,0.00016438,2]
[326547726,1715101836041,-500.0,0.00016438,2]
[326547728,1715101836057,-500.0,0.00016438,2]
[326547731,1715101836080,-500.0,0.00016438,2]
[326547733,1715101836090,-500.0,0.00016438,2]
[326547736,1715101836113,-500.0,0.00016438,2]
[326547737,1715101836131,-501.69105261,0.00016438,2]
[326547740,1715101836156,-502.54314859,0.00016438,2]
[326547741,1715101836167,-500.0,0.00016438,2]
[326547744,1715101836197,-500.0,0.00016438,2]
[326547746,1715101836209,-500.0,0.00016438,2]
[326547748,1715101836219,-500.0,0.00016438,2]
[326547750,1715101836229,-1000.22,0.00016438,2]
[326547752,1715101836239,-721.13,0.00016438,2]
[326547754,1715101836252,-500.0,0.00016438,2]
[326547755,1715101836266,-3888.81,0.00016438,2]
[326547758,1715101836284,-500.0,0.00016438,2]
[326547760,1715101836300,-2266.94,0.00016438,2]
[326547763,1715101836315,-1216.12,0.00016438,2]
[326547765,1715101836328,-500.0,0.00016438,2]
[326547767,1715101836339,-500.0,0.00016438,2]
[326547769,1715101836355,-500.0,0.00016438,2]
[326547771,1715101836367,-1371.41,0.00016438,2]
[326547773,1715101836376,-500.0,0.00016438,2]
[326547775,1715101836390,-500.0,0.00016438,2]
[326547776,1715101836411,-715.21,0.00016438,2]
[326547778,1715101836422,-802.57,0.00016438,2]
[326547780,1715101836439,-1002.16,0.00016438,2]
[326547782,1715101836453,-500.0,0.00016438,2]
[326547785,1715101836472,-502.77876857,0.00016438,2]
[326547786,1715101836487,-500.0,0.00016438,2]
[326547788,1715101836499,-500.0,0.00016438,2]
[326547790,1715101836509,-500.0,0.00016438,2]
[326547793,1715101836520,-500.0,0.00016438,2]
[326547794,1715101836532,-4746.17,0.00016438,2]
[326547796,1715101836543,-511.77898345,0.00016438,2]
[326547799,1715101836560,-500.0,0.00016438,2]
[326547800,1715101836570,-500.0,0.00016438,2]
[326547802,1715101836581,-500.0,0.00016438,2]
[326547804,1715101836591,-501.00509825,0.00016438,2]
[326547806,1715101836605,-500.0,0.00016438,2]
[326547807,1715101836615,-5846.51,0.00016438,2]
[326547810,1715101836639,-501.3949683,0.00016438,2]
[326547812,1715101836649,-638.8,0.00016438,2]
[326547814,1715101836663,-7295.15,0.00016438,2]
[326547816,1715101836674,-502.3041594,0.00016438,2]
[326547817,1715101836686,-500.0,0.00016438,2]
[326547820,1715101836704,-500.0,0.00016438,2]
[326547821,1715101836714,-304.40013482,0.00016438,2]
[326547823,1715101836725,-500.0,0.00016438,2]
[326547825,1715101836736,-608.64,0.00016438,2]
[326547826,1715101836747,-500.0,0.00016438,2]
[326547828,1715101836757,-500.0,0.00016438,2]
[326547831,1715101836772,-500.0,0.00016438,2]
[326547833,1715101836796,-500.0,0.00016438,2]
[326547835,1715101836808,-500.0,0.00016438,2]
[326547837,1715101836819,-508.24,0.00016438,2]
[326547838,1715101836835,-500.0,0.00016438,2]
[326547839,1715101836846,-500.0,0.00016438,2]
[326547841,1715101836862,-500.0,0.00016438,2]
[326547843,1715101836874,-500.0,0.00016438,2]
[326547845,1715101836888,-500.0,0.00016438,2]
[326547847,1715101836903,-506.67542359,0.00016438,2]
[326547849,1715101836922,-500.0,0.00016438,2]
[326547851,1715101836937,-544.14,0.00016438,2]
[326547853,1715101836956,-500.0,0.00016438,2]
[326547855,1715101836968,-500.0,0.00016438,2]
[326547857,1715101836978,-500.0,0.00016438,2]
[326547859,1715101836992,-1067.25,0.00016438,2]
[326547861,1715101837004,-500.0,0.00016438,2]
[326547862,1715101837015,-500.0,0.00016438,2]
[326547864,1715101837037,-472.78316428,0.00016438,2]
[326547866,1715101837049,-4461.87,0.00016438,2]
[326547868,1715101837069,-508.45,0.00016438,2]
[326547870,1715101837083,-500.0,0.00016438,2]
[326547873,1715101837098,-500.0,0.00016438,2]
[326547875,1715101837112,-797.45,0.00016438,2]
[326547877,1715101837124,-559.35,0.00016438,2]
[326547879,1715101837136,-500.0,0.00016438,2]
[326547881,1715101837150,-971.19,0.00016438,2]
[326547882,1715101837161,-4413.2,0.00016438,2]
[326547884,1715101837176,-500.0,0.00016438,2]
[326547886,1715101837189,-500.0,0.00016438,2]
[326547888,1715101837199,-500.0,0.00016438,2]
[326547889,1715101837210,-500.0,0.00016438,2]
[326547890,1715101837220,-500.0,0.00016438,2]
[326547891,1715101837232,-551.77,0.00016438,2]
[326547892,1715101837243,-500.0,0.00016438,2]
[326547893,1715101837254,-2001.33,0.00016438,2]
[326547894,1715101837265,-1372.82,0.00016438,2]
[326547895,1715101837277,-500.0,0.00016438,2]
[326547896,1715101837290,-1038.59,0.00016438,2]
[326547897,1715101837312,-502.41968866,0.00016438,2]
[326547898,1715101837330,-500.0,0.00016438,2]
[326547899,1715101837347,-3154.47,0.00016438,2]
[326547900,1715101837357,-500.0,0.00016438,2]
[326547901,1715101837367,-1849.46,0.00016438,2]
[326547902,1715101837388,-512.38,0.00016438,2]
[326547903,1715101837405,-165.40520756,0.00016438,2]
[326547904,1715101837420,-500.0,0.00016438,2]
[326547905,1715101837434,-5923.82,0.00016438,2]
[326547906,1715101837449,-500.0,0.00016438,2]
[326547907,1715101837461,-629.57,0.00016438,2]
[326547908,1715101837481,-546.0410592,0.00016438,2]
[326547909,1715101837491,-2407.17,0.00016438,2]
[326547910,1715101837512,-17405.26990804,0.00016438,2]
[326547911,1715101837676,-9106.75009196,0.00016438,2]
[326547912,1715101837686,-397.36335037,0.00016438,2]
[326547913,1715101837697,-500.0,0.00016438,2]
[326547914,1715101837711,-500.0,0.00016438,2]
[326547915,1715101837731,-503.1,0.00016438,2]
[326547916,1715101837743,-500.0,0.00016438,2]
[326547917,1715101837757,-500.0,0.00016438,2]
[326547918,1715101837769,-500.0,0.00016438,2]
[326547919,1715101837780,-3736.99,0.00016438,2]
[326547920,1715101837790,-4017.86,0.00016438,2]
[326547921,1715101837811,-1651.55,0.00016438,2]
[326547922,1715101837833,-618.68,0.00016438,2]
[326547923,1715101837845,-1896.87,0.00016438,2]
[326547924,1715101837855,-500.0,0.00016438,2]
[326547925,1715101837866,-500.0,0.00016438,2]
[326547926,1715101837878,-1053.38,0.00016438,2]
[326547927,1715101837888,-500.0,0.00016438,2]
[326547928,1715101837898,-500.0,0.00016438,2]
[326547929,1715101837910,-501.71709557,0.00016438,2]
[326547930,1715101837920,-500.0,0.00016438,2]
[326547931,1715101837931,-517.93072671,0.00016438,2]
[326547932,1715101837958,-500.0,0.00016438,2]
[326547933,1715101837968,-500.0,0.00016438,2]
[326547934,1715101837984,-7770.68,0.00016438,2]
[326547935,1715101837995,-500.0,0.00016438,2]
[326547936,1715101838012,-500.0,0.00016438,2]
[326547937,1715101838030,-1271.22,0.00016438,2]
[326547938,1715101838040,-500.0,0.00016438,2]
[326547939,1715101838057,-4627.5,0.00016438,2]
[326547940,1715101838068,-757.77,0.00016438,2]
[326547941,1715101838084,-500.0,0.00016438,2]
[326547942,1715101838099,-2148.56,0.00016438,2]
[326547943,1715101838110,-986.52,0.00016438,2]
[326547944,1715101838122,-500.0,0.00016438,2]
[326547945,1715101838132,-500.0,0.00016438,2]
[326547946,1715101838142,-2148.56,0.00016438,2]
[326547947,1715101838153,-500.0,0.00016438,2]
[326547948,1715101838165,-2148.56,0.00016438,2]
[326547949,1715101838182,-500.0,0.00016438,2]
[326547950,1715101838196,-500.0,0.00016438,2]
[326547951,1715101838207,-500.0,0.00016438,2]
[326547952,1715101838218,-500.0,0.00016438,2]
[326547953,1715101838232,-1034.37,0.00016438,2]
[326547954,1715101838243,-481.88595248,0.00016438,2]
[326547955,1715101838255,-693.87,0.00016438,2]
[326547956,1715101838268,-500.0,0.00016438,2]
[326547957,1715101838287,-505.03,0.00016438,2]
[326547958,1715101838444,-500.0,0.00016438,2]
[326547959,1715101838455,-1448.33,0.00016438,2]
[326547960,1715101838466,-500.0,0.00016438,2]
[326547961,1715101838477,-198.14094944,0.00016438,2]
[326548007,1715101843066,-1110.44905056,0.00016438,2]
[326548010,1715101843077,-500.0,0.00016438,2]
[326548012,1715101843091,-273.3300509,0.000165,2]
[326548014,1715101843100,-3964.26032842,0.00016512,2]
[326548016,1715101843111,-49856.96057012,0.00016612,2]
[326548019,1715101843123,-5698.03942988,0.00016612,2]
[326548020,1715101843141,-2685.74999151,0.00016624,5]
[326548022,1715101843153,-3330.19639294,0.00016624,2]
[326548024,1715101843170,-206.420256,0.00016624,2]
[326548026,1715101843184,-240.996391,0.00016624,2]
[326548028,1715101843196,-206.420256,0.00016624,2]
[326548030,1715101843211,-240.996391,0.00016624,2]
[326548032,1715101843224,-182.82663427,0.00016711,2]
[326548034,1715101843235,-500.0,0.00016712,2]
[326548035,1715101843252,-500.0,0.00016712,2]
[326548038,1715101843270,-500.0,0.00016712,2]
[326548040,1715101843280,-500.0,0.00016712,2]
[326548041,1715101843298,-500.0,0.00016712,2]
[326548042,1715101843313,-500.0,0.00016712,2]
[326548043,1715101843330,-500.0,0.00016712,2]
[326548044,1715101843349,-500.0,0.00016712,2]
[326548045,1715101843361,-500.0,0.00016712,2]
[326548046,1715101843381,-500.0,0.00016712,2]
[326548047,1715101843392,-803.74,0.00016712,2]
[326548048,1715101843408,-500.0,0.00016712,2]
[326548049,1715101843420,-500.0,0.00016712,2]
[326548050,1715101843431,-961.34,0.00016712,2]
[326548051,1715101843442,-500.0,0.00016712,2]
[326548052,1715101843454,-727.01,0.00016712,2]
[326548053,1715101843467,-501.56339451,0.00016712,2]
[326548054,1715101843483,-500.0,0.00016712,2]
[326548055,1715101843502,-500.0,0.00016712,2]
[326548056,1715101843516,-519.68,0.00016712,2]
[326548057,1715101843527,-244.1380897,0.00016712,2]
[326548058,1715101843538,-500.0,0.00016712,2]
[326548059,1715101843561,-500.0,0.00016712,2]
[326548060,1715101843576,-3002.35,0.00016712,2]
[326548061,1715101843593,-500.0,0.00016712,2]
[326548062,1715101843604,-500.0,0.00016712,2]
[326548063,1715101843615,-1416.87,0.00016712,2]
[326548064,1715101843630,-500.0,0.00016712,2]
[326548065,1715101843644,-500.0,0.00016712,2]
[326548066,1715101843657,-500.0,0.00016712,2]
[326548067,1715101843668,-500.0,0.00016712,2]
[326548068,1715101843680,-500.0,0.00016712,2]
[326548069,1715101843693,-500.0,0.00016712,2]
[326548070,1715101843703,-500.0,0.00016712,2]
[326548071,1715101843720,-500.0,0.00016712,2]
[326548072,1715101843744,-500.0,0.00016712,2]
[326548073,1715101843755,-500.0,0.00016712,2]
[326548074,1715101843765,-500.0,0.00016712,2]
[326548075,1715101843781,-537.01,0.00016712,2]
[326548076,1715101843808,-500.0,0.00016712,2]
[326548077,1715101843818,-500.0,0.00016712,2]
[326548078,1715101843839,-452.63645875,0.00016712,2]
[326548079,1715101843855,-500.0,0.00016712,2]
[326548080,1715101843866,-500.0,0.00016712,2]
[326548081,1715101843886,-500.0,0.00016712,2]
[326548082,1715101843898,-500.0,0.00016712,2]
[326548083,1715101843909,-601.51743714,0.00016712,2]
[326548084,1715101843932,-500.0,0.00016712,2]
[326548085,1715101843945,-544.30344204,0.00016712,2]
[326548086,1715101843960,-500.0,0.00016712,2]
[326548087,1715101843976,-500.0,0.00016712,2]
[326548088,1715101843991,-500.0,0.00016712,2]
[326548089,1715101844016,-500.0,0.00016712,2]
[326548090,1715101844042,-1000.22,0.00016712,2]
[326548091,1715101844054,-721.13,0.00016712,2]
[326548092,1715101844069,-500.0,0.00016712,2]
[326548093,1715101844094,-3888.81,0.00016712,2]
[326548094,1715101844108,-510.37810659,0.00016712,2]
[326548095,1715101844119,-2266.94,0.00016712,2]
[326548096,1715101844134,-500.0,0.00016712,2]
[326548097,1715101844145,-500.0,0.00016712,2]
[326548098,1715101844164,-500.0,0.00016712,2]
[326548099,1715101844192,-1371.41,0.00016712,2]
[326548100,1715101844205,-500.0,0.00016712,2]
[326548101,1715101844217,-715.21,0.00016712,2]
[326548102,1715101844228,-802.57,0.00016712,2]
[326548103,1715101844252,-1002.16,0.00016712,2]
[326548104,1715101844263,-500.0,0.00016712,2]
[326548105,1715101844274,-500.0,0.00016712,2]
[326548106,1715101844287,-3233.31520198,0.00016712,2]
[326548107,1715101844303,-1512.85479802,0.00016712,2]
[326548108,1715101844329,-500.0,0.00016712,2]
[326548109,1715101844340,-502.21515517,0.00016712,2]
[326548110,1715101844352,-500.0,0.00016712,2]
[326548111,1715101844366,-500.0,0.00016712,2]
[326548112,1715101844376,-5846.51,0.00016712,2]
[326548113,1715101844393,-638.8,0.00016712,2]
[326548114,1715101844406,-7295.15,0.00016712,2]
[326548115,1715101844417,-500.0,0.00016712,2]
[326548116,1715101844430,-500.0,0.00016712,2]
[326548117,1715101844440,-500.0,0.00016712,2]
[326548118,1715101844454,-608.64,0.00016712,2]
[326548119,1715101844465,-117.10806401,0.00016712,2]
[326548120,1715101844492,-382.89193599,0.00016712,2]
[326548121,1715101844503,-500.0,0.00016712,2]
[326548122,1715101844514,-500.0,0.00016712,2]
[326548123,1715101844524,-500.0,0.00016712,2]
[326548124,1715101844541,-500.0,0.00016712,2]
[326548125,1715101844554,-508.24,0.00016712,2]
[326548126,1715101844567,-500.0,0.00016712,2]
[326548127,1715101844577,-500.0,0.00016712,2]
[326548128,1715101844588,-500.0,0.00016712,2]
[326548129,1715101844598,-500.0,0.00016712,2]
[326548130,1715101844610,-500.0,0.00016712,2]
[326548131,1715101844621,-500.0,0.00016712,2]
[326548132,1715101844639,-544.14,0.00016712,2]
[326548133,1715101844649,-502.48434673,0.00016712,2]
[326548134,1715101844665,-500.0,0.00016712,2]
[326548135,1715101844678,-1067.25,0.00016712,2]
[326548136,1715101844700,-500.0,0.00016712,2]
[326548137,1715101844721,-500.0,0.00016712,2]
[326548138,1715101844747,-727.04871728,0.00016712,2]
[326548139,1715101844762,-1327.37668372,0.00016712,2]
[326548140,1715101844777,-2407.444599,0.00016712,2]
[326548141,1715101844787,-508.45,0.00016712,2]
[326548142,1715101844798,-500.0,0.00016712,2]
[326548143,1715101844810,-797.45,0.00016712,2]
[326548144,1715101844830,-559.35,0.00016712,2]
[326548145,1715101844847,-500.0,0.00016712,2]
[326548146,1715101844868,-971.19,0.00016712,2]
[326548147,1715101844888,-4413.2,0.00016712,2]
[326548148,1715101844904,-500.0,0.00016712,2]
[326548149,1715101844921,-500.0,0.00016712,2]
[326548150,1715101844932,-500.0,0.00016712,2]
[326548151,1715101844944,-500.0,0.00016712,2]
[326548152,1715101844956,-500.0,0.00016712,2]
[326548153,1715101844973,-551.77,0.00016712,2]
[326548154,1715101844988,-500.0,0.00016712,2]
[326548155,1715101845006,-2001.33,0.00016712,2]
[326548156,1715101845017,-1372.82,0.00016712,2]
[326548157,1715101845033,-1038.59,0.00016712,2]
[326548158,1715101845047,-500.0,0.00016712,2]
[326548159,1715101845063,-3154.47,0.00016712,2]
[326548160,1715101845073,-500.0,0.00016712,2]
[326548161,1715101845084,-1849.46,0.00016712,2]
[326548162,1715101845096,-512.38,0.00016712,2]
[326548163,1715101845107,-500.0,0.00016712,2]
[326548164,1715101845119,-5923.82,0.00016712,2]
[326548165,1715101845130,-500.0,0.00016712,2]
[326548166,1715101845151,-629.57,0.00016712,2]
[326548167,1715101845167,-2407.17,0.00016712,2]
[326548168,1715101845182,-26512.02,0.00016712,2]
[326548169,1715101845193,-500.0,0.00016712,2]
[326548170,1715101845206,-500.0,0.00016712,2]
[326548171,1715101845224,-503.1,0.00016712,2]
[326548172,1715101845235,-500.0,0.00016712,2]
[326548173,1715101845260,-500.0,0.00016712,2]
[326548174,1715101845272,-500.0,0.00016712,2]
[326548175,1715101845283,-3736.99,0.00016712,2]
[326548176,1715101845294,-4017.86,0.00016712,2]
[326548177,1715101845312,-1651.55,0.00016712,2]
[326548178,1715101845324,-618.68,0.00016712,2]
[326548179,1715101845340,-1896.87,0.00016712,2]
[326548180,1715101845351,-500.0,0.00016712,2]
[326548181,1715101845366,-500.0,0.00016712,2]
[326548182,1715101845379,-1053.38,0.00016712,2]
[326548183,1715101845398,-543.53955657,0.00016712,2]
[326548184,1715101845416,-500.0,0.00016712,2]
[326548185,1715101845430,-500.0,0.00016712,2]
[326548186,1715101845442,-500.0,0.00016712,2]
[326548187,1715101845453,-7770.68,0.00016712,2]
[326548188,1715101845464,-500.0,0.00016712,2]
[326548189,1715101845474,-500.0,0.00016712,2]
[326548190,1715101845488,-1271.22,0.00016712,2]
[326548191,1715101845500,-4627.5,0.00016712,2]
[326548192,1715101845517,-500.0,0.00016712,2]
[326548193,1715101845533,-500.0,0.00016712,2]
[326548194,1715101845546,-500.0,0.00016712,2]
[326548195,1715101845561,-500.0,0.00016712,2]
[326548196,1715101845584,-986.52,0.00016712,2]
[326548197,1715101845595,-500.0,0.00016712,2]
[326548198,1715101845622,-757.77,0.00016712,2]
[326548199,1715101845633,-500.0,0.00016712,2]
[326548200,1715101845645,-500.0,0.00016712,2]
[326548201,1715101845656,-500.0,0.00016712,2]
[326548202,1715101845666,-500.0,0.00016712,2]
[326548203,1715101845680,-1034.37,0.00016712,2]
[326548204,1715101845690,-693.87,0.00016712,2]
[326548205,1715101845701,-500.0,0.00016712,2]
[326548206,1715101845736,-505.03,0.00016712,2]
[326548207,1715101845748,-500.0,0.00016712,2]
[326548208,1715101845764,-1448.33,0.00016712,2]
[326548209,1715101845775,-500.0,0.00016712,2]
[326548210,1715101845789,-1308.59,0.00016712,2]
[326548211,1715101845803,-334.7,0.00016712,2]
[326548212,1715101845815,-206.420256,0.00016824,2]
[326548213,1715101845830,-240.996391,0.00016824,2]
[326548214,1715101845848,-206.420256,0.00016824,2]
[326548215,1715101845859,-240.996391,0.00016824,2]
[326548216,1715101845872,-161.37699626,0.00016986,2]
[326548217,1715101845889,-500.0,0.00016986,2]
[326548218,1715101845916,-500.0,0.00016986,2]
[326548219,1715101845928,-500.0,0.00016986,2]
[326548220,1715101845943,-500.0,0.00016986,2]
[326548221,1715101845954,-500.0,0.00016986,2]
[326548222,1715101845976,-500.0,0.00016986,2]
[326548223,1715101845998,-556.20228642,0.00016986,2]
[326548224,1715101846013,-500.0,0.00016986,2]
[326548225,1715101846034,-500.0,0.00016986,2]
[326548226,1715101846050,-803.74,0.00016986,2]
[326548227,1715101846063,-500.0,0.00016986,2]
[326548228,1715101846077,-500.0,0.00016986,2]
[326548229,1715101846088,-500.0,0.00016986,2]
[326548234,1715101846111,-961.34,0.00016986,2]
[326548236,1715101846125,-727.01,0.00016986,2]
[326548240,1715101846135,-500.0,0.00016986,2]
[326548244,1715101846152,-500.0,0.00016986,2]
[326548249,1715101846163,-519.68,0.00016986,2]
[326548254,1715101846174,-503.24864757,0.00016986,2]
[326548259,1715101846185,-500.0,0.00016986,2]
[326548263,1715101846198,-3002.35,0.00016986,2]
[326548267,1715101846212,-500.0,0.00016986,2]
[326548270,1715101846227,-500.0,0.00016986,2]
[326548271,1715101846243,-1416.87,0.00016986,2]
[326548273,1715101846255,-406.67845699,0.00016986,2]
[326548275,1715101846277,-500.0,0.00016986,2]
[326548276,1715101846297,-500.0,0.00016986,2]
[326548277,1715101846308,-500.0,0.00016986,2]
[326548278,1715101846328,-500.0,0.00016986,2]
[326548279,1715101846339,-500.0,0.00016986,2]
[326548280,1715101846350,-500.0,0.00016986,2]
[326548281,1715101846369,-500.0,0.00016986,2]
[326548282,1715101846382,-500.0,0.00016986,2]
[326548283,1715101846392,-500.0,0.00016986,2]
[326548284,1715101846406,-500.0,0.00016986,2]
[326548285,1715101846428,-537.01,0.00016986,2]
[326548286,1715101846438,-500.0,0.00016986,2]
[326548287,1715101846453,-500.0,0.00016986,2]
[326548288,1715101846466,-500.0,0.00016986,2]
[326548289,1715101846477,-500.0,0.00016986,2]
[326548290,1715101846492,-501.8713421,0.00016986,2]
[326548291,1715101846507,-500.0,0.00016986,2]
[326548292,1715101846523,-500.0,0.00016986,2]
[326548293,1715101846535,-500.0,0.00016986,2]
[326548294,1715101846545,-500.0,0.00016986,2]
[326548295,1715101846560,-500.0,0.00016986,2]
[326548296,1715101846571,-500.0,0.00016986,2]
[326548297,1715101846581,-1000.22,0.00016986,2]
[326548298,1715101846592,-721.13,0.00016986,2]
[326548299,1715101846602,-3888.81,0.00016986,2]
[326548300,1715101846618,-2266.94,0.00016986,2]
[326548301,1715101846628,-500.0,0.00016986,2]
[326548302,1715101846640,-500.0,0.00016986,2]
[326548303,1715101846661,-1371.41,0.00016986,2]
[326548304,1715101846675,-715.21,0.00016986,2]
[326548305,1715101846686,-802.57,0.00016986,2]
[326548306,1715101846701,-1002.16,0.00016986,2]
[326548307,1715101846712,-500.0,0.00016986,2]
[326548308,1715101846724,-500.0,0.00016986,2]
[326548309,1715101846735,-4746.17,0.00016986,2]
[326548310,1715101846748,-500.0,0.00016986,2]
[326548311,1715101846758,-500.0,0.00016986,2]
[326548312,1715101846773,-500.0,0.00016986,2]
[326548313,1715101846783,-5846.51,0.00016986,2]
[326548314,1715101846797,-638.8,0.00016986,2]
[326548315,1715101846812,-7295.15,0.00016986,2]
[326548316,1715101846822,-500.0,0.00016986,2]
[326548317,1715101846834,-500.0,0.00016986,2]
[326548318,1715101846849,-500.0,0.00016986,2]
[326548319,1715101846859,-608.64,0.00016986,2]
[326548320,1715101846871,-441.44036065,0.00016986,2]
[326548321,1715101846881,-500.0,0.00016986,2]
[326548322,1715101846896,-500.0,0.00016986,2]
[326548323,1715101846906,-500.0,0.00016986,2]
[326548324,1715101846921,-614.96541373,0.00016986,2]
[326548325,1715101846944,-508.24,0.00016986,2]
[326548326,1715101846956,-500.0,0.00016986,2]
[326548327,1715101846971,-500.0,0.00016986,2]
[326548328,1715101846987,-265.77167,0.00016986,2]
[326548329,1715101847009,-500.0,0.00016986,2]
[326548330,1715101847035,-500.0,0.00016986,2]
[326548331,1715101847046,-500.0,0.00016986,2]
[326548332,1715101847057,-191.99420831,0.00016986,2]
[326548333,1715101847068,-544.14,0.00016986,2]
[326548334,1715101847084,-500.0,0.00016986,2]
[326548335,1715101847099,-1067.25,0.00016986,2]
[326548336,1715101847109,-500.0,0.00016986,2]
[326548337,1715101847120,-500.0,0.00016986,2]
[326548338,1715101847131,-4461.87,0.00016986,2]
[326548339,1715101847140,-508.45,0.00016986,2]
[326548340,1715101847154,-500.0,0.00016986,2]
[326548341,1715101847172,-797.45,0.00016986,2]
[326548342,1715101847308,-559.35,0.00016986,2]
[326548343,1715101847321,-500.0,0.00016986,2]
[326548344,1715101847331,-971.19,0.00016986,2]
[326548345,1715101847342,-4413.2,0.00016986,2]
[326548346,1715101847355,-500.0,0.00016986,2]
[326548347,1715101847366,-500.0,0.00016986,2]
[326548348,1715101847379,-500.0,0.00016986,2]
[326548349,1715101847390,-500.0,0.00016986,2]
[326548350,1715101847412,-500.0,0.00016986,2]
[326548351,1715101847428,-551.77,0.00016986,2]
[326548352,1715101847449,-2001.33,0.00016986,2]
[326548353,1715101847464,-1372.82,0.00016986,2]
[326548354,1715101847476,-1038.59,0.00016986,2]
[326548355,1715101847491,-500.0,0.00016986,2]
[326548356,1715101847509,-500.0,0.00016986,2]
[326548357,1715101847521,-3154.47,0.00016986,2]
[326548358,1715101847543,-500.0,0.00016986,2]
[326548359,1715101847556,-1849.46,0.00016986,2]
[326548360,1715101847567,-512.38,0.00016986,2]
[326548361,1715101847577,-5923.82,0.00016986,2]
[326548362,1715101847591,-500.0,0.00016986,2]
[326548363,1715101847601,-629.57,0.00016986,2]
[326548364,1715101847613,-2407.17,0.00016986,2]
[326548365,1715101847628,-26512.02,0.00016986,2]
[326548366,1715101847641,-500.0,0.00016986,2]